{"text_format":"3","workbook":"xlsx","n_sheets":1,"sheets":["Table 1"],"read":"whole","date_system":"1900"}

{"sheet":"Table 1","index":0,"n_rows":414,"n_cols":8,"rows_kept":414,"merged":[[410,1,410,8],[412,0,412,7],[413,0,413,7]]}
["1 of 22"]
["Line Nr.","Province","Description","Unit Price\n(excl VAT)","Extra per kg","TOTAL COST (excl VAT)","VAT =15%","TOTAL COST (incl VAT)"]
[2560,"Eastern Cape","OVERNIGHT EXPRESS DELIVERY BETWEEN EASTERN CAPE PROVINCE AND KWAZULU NATAL PROVINCE ABOVE 10KG (PER KG)",100,10,{"$f":"D3+E3","v":110},{"v":0.15,"d":"15%"},{"$f":"F3+(F3*15%)","v":126.5}]
[2580,"Eastern Cape","OVERNIGHT EXPRESS DELIVERY BETWEEN EASTERN CAPE PROVINCE AND NORTH WEST PROVINCE ABOVE 10KG (PER KG)",10,null,{"$f":"D4+E4","v":10},{"v":0.15,"d":"15%"},{"$f":"F4+(F4*15%)","v":11.5}]
[2590,"Eastern Cape","OVERNIGHT EXPRESS DELIVERY BETWEEN EASTERN CAPE PROVINCE AND FREE STATE PROVINCE ABOVE 10KG (PER KG)",null,null,0,{"v":0.15,"d":"15%"},0]
[120,"Eastern Cape","OVERNIGHT EXPRESS DELIVERY BETWEEN EASTERN CAPE PROVINCE AND FREE STATE PROVINCE ABOVE 1KG LESS THAN 10KG",null,null,0,{"v":0.15,"d":"15%"},0]
[130,"Eastern Cape","OVERNIGHT EXPRESS DELIVERY BETWEEN EASTERN CAPE PROVINCE AND NORTH WEST PROVINCE ABOVE 1KG LESS THAN 10KG",null,null,0,{"v":0.15,"d":"15%"},0]
["Line Nr.","Province","Description","Unit Price\n(excl VAT)",null,null,"Extra per kg","TOTAL COST"]
[1340,"Eastern Cape","SAME DAY DELIVERY BETWEEN EASTERN CAPE PROVINCE AND NORTH WEST PROVINCE ABOVE 1KG LESS THAN 10KG",null,null,{"$f":"D9+E9","v":0},{"v":0.15,"d":"15%"},{"$f":"F9+(F9*15%)","v":0}]
[1350,"Eastern Cape","SAME DAY DELIVERY BETWEEN EASTERN CAPE PROVINCE AND FREE STATE PROVINCE ABOVE 1KG LESS THAN 10KG",null,null,0,{"v":0.15,"d":"15%"},0]
[1720,"Eastern Cape","PUBLIC HOLIDAY AND WEEKEND DELIVERY BETWEEN EASTERN CAPE PROVINCE AND KWAZULU NATAL PROVINCE ABOVE 1KG LESS THAN 10KG",null,null,0,{"v":0.15,"d":"15%"},0]
[1730,"Eastern Cape","PUBLIC HOLIDAY AND WEEKEND DELIVERY BETWEEN EASTERN CAPE PROVINCE AND NORTH WEST PROVINCE ABOVE 1KG LESS THAN 10KG",null,null,0,{"v":0.15,"d":"15%"},0]
[1740,"Eastern Cape","PUBLIC HOLIDAY AND WEEKEND DELIVERY BETWEEN EASTERN CAPE PROVINCE AND FREE STATE PROVINCE ABOVE 1KG LESS THAN 10KG",null,null,0,{"v":0.15,"d":"15%"},0]
[2120,"Eastern Cape","ECONOMY DELIVERY BETWEEN EASTERN CAPE PROVINCE AND KWAZULU NATAL  PROVINCE ABOVE 1KG LESS THAN 10KG",null,null,0,{"v":0.15,"d":"15%"},0]
[2130,"Eastern Cape","ECONOMY DELIVERY BETWEEN EASTERN CAPE PROVINCE AND NORTH WEST  PROVINCE ABOVE 1KG LESS THAN 10KG",null,null,0,{"v":0.15,"d":"15%"},0]
[2140,"Eastern Cape","ECONOMY DELIVERY BETWEEN EASTERN CAPE PROVINCE AND FREE STATE  PROVINCE ABOVE 1KG LESS THAN 10KG",null,null,0,{"v":0.15,"d":"15%"},0]
[2730,"Eastern Cape","OVERNIGHT EXPRESS DELIVERY BETWEEN EASTERN CAPE PROVINCE AND KWAZULU NATAL PROVINCE ABOVE 1KG LESS THAN 10KG",null,null,0,{"v":0.15,"d":"15%"},0]
[3270,"Eastern Cape","SAME DAY DELIVERY BETWEEN EASTERN CAPE PROVINCE AND KWAZULU NATAL PROVINCE ABOVE 1KG LESS THAN 10KG",null,null,0,{"v":0.15,"d":"15%"},0]
[3280,"Eastern Cape","SAME DAY DELIVERY BETWEEN EASTERN CAPE PROVINCE AND NORTH WEST PROVINCE ABOVE 1KG LESS THAN 10KG",null,null,0,{"v":0.15,"d":"15%"},0]
[3290,"Eastern Cape","SAME DAY DELIVERY BETWEEN EASTERN CAPE PROVINCE AND FREE STATE PROVINCE ABOVE 1KG LESS THAN 10KG",null,null,0,{"v":0.15,"d":"15%"},0]
[3730,"Eastern Cape","PUBLIC HOLIDAY AND WEEKEND DELIVERY BETWEEN EASTERN CAPE PROVINCE AND KWAZULU NATAL PROVINCE ABOVE 10KG (PER KG)",null,null,0,{"v":0.15,"d":"15%"},0]
[3740,"Eastern Cape","PUBLIC HOLIDAY AND WEEKEND DELIVERY BETWEEN EASTERN CAPE PROVINCE AND FREE STATE PROVINCE ABOVE 10KG (PER KG)",null,null,0,{"v":0.15,"d":"15%"},0]
[3750,"Eastern Cape","PUBLIC HOLIDAY AND WEEKEND DELIVERY BETWEEN EASTERN CAPE PROVINCE AND NORTH WEST PROVINCE ABOVE 10KG (PER KG)",null,null,0,{"v":0.15,"d":"15%"},0]
[4450,"Eastern Cape","ECONOMY DELIVERY BETWEEN EASTERN CAPE PROVINCE AND NORTH WEST  PROVINCE ABOVE 10KG (PER KG)",null,null,0,{"v":0.15,"d":"15%"},0]
[4460,"Eastern Cape","ECONOMY DELIVERY BETWEEN EASTERN CAPE PROVINCE AND KWAZULU NATAL  PROVINCE ABOVE 10KG (PER KG)",null,null,0,{"v":0.15,"d":"15%"},0]
["3 of 22"]
["Line Nr.","Province","Description","Unit Price\n(excl VAT)",null,null,"Extra per kg","Unit Price \n(incl VAT) If Applicable"]
[4470,"Eastern Cape","ECONOMY DELIVERY BETWEEN EASTERN CAPE PROVINCE AND FREE STATE  PROVINCE ABOVE 10KG (PER KG)",null,null,{"$f":"D28+E28","v":0},{"v":0.15,"d":"15%"},{"$f":"F28+(F28*15%)","v":0}]
[10,"Eastern Cape- Within","OVERNIGHT EXPRESS DELIVERY WITHIN EASTERN CAPE PROVINCE ABOVE 1KG LESS THAN 10KG",null,null,0,{"v":0.15,"d":"15%"},0]
[20,"Eastern Cape- Within","OVERNIGHT EXPRESS DELIVERY WITHIN EASTERN CAPE PROVINCE ABOVE 10KG (PER KG)",null,null,0,{"v":0.15,"d":"15%"},0]
[2640,"Eastern Cape- Within","SAME DAY DELIVERY WITHIN EASTERN CAPE PROVINCE ABOVE 1KG LESS THAN 10KG",null,null,0,{"v":0.15,"d":"15%"},0]
[2650,"Eastern Cape- Within","PUBLIC HOLIDAY AND WEEKEND DELIVERY WITHIN EASTERN CAPE PROVINCE ABOVE 1KG LESS THAN 10KG",null,null,0,{"v":0.15,"d":"15%"},0]
[2660,"Eastern Cape- Within","ECONOMY DELIVERY WITHIN EASTERN CAPE PROVINCE ABOVE 1KG LESS THAN 10KG",null,null,0,{"v":0.15,"d":"15%"},0]
[2670,"Eastern Cape- Within","SAME DAY DELIVERY WITHIN EASTERN CAPE PROVINCE ABOVE 10KG (PER KG)",null,null,0,{"v":0.15,"d":"15%"},0]
[2680,"Eastern Cape- Within","PUBLIC HOLIDAY AND WEEKEND DELIVERY WITHIN EASTERN CAPE PROVINCE ABOVE 10KG (PER KG)",null,null,0,{"v":0.15,"d":"15%"},0]
[2860,"Eastern Cape- Within","ECONOMY DELIVERY WITHIN EASTERN CAPE PROVINCE ABOVE 10KG (PER KG)",null,null,0,{"v":0.15,"d":"15%"},0]
[1080,"Free State- Within","OVERNIGHT EXPRESS DELIVERY WITHIN FREE STATE PROVINCE ABOVE 10KG (PER KG)",null,null,0,{"v":0.15,"d":"15%"},0]
[null,"Free State- Within","OVERNIGHT EXPRESS DELIVERY WITHIN FREE STATE PROVINCE ABOVE 1KG LESS THAN 10KG(PER KG)",null,null,0,{"v":0.15,"d":"15%"},0]
[2700,"Free State- Within","SAME DAY DELIVERY WITHIN FREE STATE PROVINCE ABOVE 1KG LESS THAN 10KG",null,null,0,{"v":0.15,"d":"15%"},0]
[2720,"Free State- Within","PUBLIC HOLIDAY AND WEEKEND DELIVERY WITHIN FREE STATE PROVINCE ABOVE 1KG LESS THAN 10KG",null,null,0,{"v":0.15,"d":"15%"},0]
[2740,"Free State- Within","ECONOMY DELIVERY WITHIN FREE SATE PROVINCE ABOVE 1KG LESS THAN 10KG",null,null,0,{"v":0.15,"d":"15%"},0]
[2750,"Free State- Within","SAME DAY DELIVERY WITHIN FREE STATE PROVINCE ABOVE 10KG (PER KG)",null,null,0,{"v":0.15,"d":"15%"},0]
[2760,"Free State- Within","PUBLIC HOLIDAY AND WEEKEND DELIVERY WITHIN FREE STATE PROVINCE ABOVE 10KG (PER KG)",null,null,0,{"v":0.15,"d":"15%"},0]
[2830,"Free State- Within","ECONOMY DELIVERY WITHIN FREE SATE PROVINCE ABOVE 10KG (PER KG)",null,null,0,{"v":0.15,"d":"15%"},0]
[1000,"Gauteng","SAME DAY DELIVERY BETWEEN GAUTENG PROVINCE AND LIMPOPO PROVINCE ABOVE 1KG LESS THAN 10KG",null,null,0,{"v":0.15,"d":"15%"},0]
[1010,"Gauteng","SAME DAY DELIVERY BETWEEN GAUTENG PROVINCE AND MPUMALANGA PROVINCE ABOVE 1KG LESS THAN 10KG",null,null,0,{"v":0.15,"d":"15%"},0]
[1020,"Gauteng","SAME DAY DELIVERY BETWEEN GAUTENG PROVINCE AND NORTHERN CAPE PROVINCE ABOVE 1KG LESS THAN 10KG",null,null,0,{"v":0.15,"d":"15%"},0]
[1030,"Gauteng","SAME DAY DELIVERY BETWEEN GAUTENG PROVINCE AND WESTERN CAPE PROVINCE ABOVE 1KG LESS THAN 10KG",null,null,0,{"v":0.15,"d":"15%"},0]
[1040,"Gauteng","SAME DAY DELIVERY BETWEEN GAUTENG PROVINCE AND EASTERN CAPE PROVINCE ABOVE 1KG LESS THAN 10KG",null,null,0,{"v":0.15,"d":"15%"},0]
["Line Nr.","Province","Description","Unit Price\n(excl VAT)",null,null,"Extra per kg","Unit Price \n(incl VAT) If Applicable"]
[]
[1050,"Gauteng","SAME DAY DELIVERY BETWEEN GAUTENG PROVINCE AND KWAZULU NATAL PROVINCE ABOVE 1KG LESS THAN 10KG",null,null,{"$f":"D52+E52","v":0},{"v":0.15,"d":"15%"},{"$f":"F52+(F52*15%)","v":0}]
[1060,"Gauteng","SAME DAY DELIVERY BETWEEN GAUTENG PROVINCE AND NORTH WEST PROVINCE ABOVE 1KG LESS THAN 10KG",null,null,0,{"v":0.15,"d":"15%"},0]
[1070,"Gauteng","SAME DAY DELIVERY BETWEEN GAUTENG PROVINCE AND FREE STATE PROVINCE ABOVE 1KG LESS THAN 10KG",null,null,0,{"v":0.15,"d":"15%"},0]
[1200,"Gauteng","OVERNIGHT EXPRESS DELIVERY BETWEEN GAUTENG PROVINCE AND KWAZULU NATAL PROVINCE ABOVE 1KG LESS THAN 10KG",null,null,0,{"v":0.15,"d":"15%"},0]
[1390,"Gauteng","PUBLIC HOLIDAY AND WEEKEND DELIVERY BETWEEN GAUTENG PROVINCE AND LIMPOPO PROVINCE ABOVE 1KG LESS THAN 10KG",null,null,0,{"v":0.15,"d":"15%"},0]
[140,"Gauteng","OVERNIGHT EXPRESS DELIVERY BETWEEN GAUTENG PROVINCE AND NORTHERN CAPE PROVINCE ABOVE 10KG (PER KG)",null,null,0,{"v":0.15,"d":"15%"},0]
[1400,"Gauteng","PUBLIC HOLIDAY AND WEEKEND DELIVERY BETWEEN GAUTENG PROVINCE AND MPUMALANGA PROVINCE ABOVE 1KG LESS THAN 10KG",null,null,0,{"v":0.15,"d":"15%"},0]
[1410,"Gauteng","PUBLIC HOLIDAY AND WEEKEND DELIVERY BETWEEN GAUTENG PROVINCE AND NORTHERN CAPE PROVINCE ABOVE 1KG LESS THAN 10KG",null,null,0,{"v":0.15,"d":"15%"},0]
[1430,"Gauteng","PUBLIC HOLIDAY AND WEEKEND DELIVERY BETWEEN GAUTENG PROVINCE AND WESTERN CAPE PROVINCE ABOVE 1KG LESS THAN 10KG",null,null,0,{"v":0.15,"d":"15%"},0]
[1440,"Gauteng","PUBLIC HOLIDAY AND WEEKEND DELIVERY BETWEEN GAUTENG PROVINCE AND EASTERN CAPE PROVINCE ABOVE 1KG LESS THAN 10KG",null,null,0,{"v":0.15,"d":"15%"},0]
[1450,"Gauteng","PUBLIC HOLIDAY AND WEEKEND DELIVERY BETWEEN GAUTENG PROVINCE AND KWAZULU NATAL PROVINCE ABOVE 1KG LESS THAN 10KG",null,null,0,{"v":0.15,"d":"15%"},0]
[1460,"Gauteng","PUBLIC HOLIDAY AND WEEKEND DELIVERY BETWEEN GAUTENG PROVINCE AND NORTH WEST PROVINCE ABOVE 1KG LESS THAN 10KG",null,null,0,{"v":0.15,"d":"15%"},0]
[1470,"Gauteng","PUBLIC HOLIDAY AND WEEKEND DELIVERY BETWEEN GAUTENG PROVINCE AND FREE STATE PROVINCE ABOVE 1KG LESS THAN 10KG",null,null,0,{"v":0.15,"d":"15%"},0]
[150,"Gauteng","OVERNIGHT EXPRESS DELIVERY BETWEEN GAUTENG PROVINCE AND MPUMALANGA PROVINCE ABOVE 10KG (PER KG)",null,null,0,{"v":0.15,"d":"15%"},0]
[160,"Gauteng","OVERNIGHT EXPRESS DELIVERY BETWEEN GAUTENG PROVINCE AND LIMPOPO PROVINCE ABOVE 10KG (PER KG)",null,null,0,{"v":0.15,"d":"15%"},0]
[1790,"Gauteng","ECONOMY DELIVERY BETWEEN GAUTENG PROVINCE AND LIMPOPO PROVINCE ABOVE 1KG LESS THAN 10KG",null,null,0,{"v":0.15,"d":"15%"},0]
["5 of 22"]
["Line Nr.","Province","Description","Unit Price\n(excl VAT)",null,null,"Extra per kg","Unit Price \n(incl VAT) If Applicable"]
[180,"Gauteng","OVERNIGHT EXPRESS DELIVERY BETWEEN GAUTENG PROVINCE AND WESTERN CAPE PROVINCE ABOVE 10KG (PER KG)",null,null,{"$f":"D70+E70","v":0},{"v":0.15,"d":"15%"},{"$f":"F70+(F70*15%)","v":0}]
[1800,"Gauteng","ECONOMY DELIVERY BETWEEN GAUTENG PROVINCE AND MPUMALANGA PROVINCE ABOVE 1KG LESS THAN 10KG",null,null,0,{"v":0.15,"d":"15%"},0]
[1810,"Gauteng","ECONOMY DELIVERY BETWEEN GAUTENG PROVINCE AND NORTHERN CAPE PROVINCE ABOVE 1KG LESS THAN 10KG",null,null,0,{"v":0.15,"d":"15%"},0]
[1820,"Gauteng","ECONOMY DELIVERY BETWEEN GAUTENG PROVINCE AND WESTERN CAPE PROVINCE ABOVE 1KG LESS THAN 10KG",null,null,0,{"v":0.15,"d":"15%"},0]
[1830,"Gauteng","ECONOMY DELIVERY BETWEEN GAUTENG PROVINCE AND EASTERNCAPE PROVINCE ABOVE 1KG LESS THAN 10KG",null,null,0,{"v":0.15,"d":"15%"},0]
[1840,"Gauteng","ECONOMY DELIVERY BETWEEN GAUTENG PROVINCE AND NORTH WEST PROVINCE ABOVE 1KG LESS THAN 10KG",null,null,0,{"v":0.15,"d":"15%"},0]
[1850,"Gauteng","ECONOMY DELIVERY BETWEEN GAUTENG PROVINCE AND KWAZULU NATAL PROVINCE ABOVE 1KG LESS THAN 10KG",null,null,0,{"v":0.15,"d":"15%"},0]
[1870,"Gauteng","ECONOMY DELIVERY BETWEEN GAUTENG PROVINCE AND FREE STATE PROVINCE ABOVE 1KG LESS THAN 10KG",null,null,0,{"v":0.15,"d":"15%"},0]
[190,"Gauteng","OVERNIGHT EXPRESS DELIVERY BETWEEN GAUTENG PROVINCE AND LIMPOPO PROVINCE ABOVE 1KG LESS THAN 10KG",null,null,0,{"v":0.15,"d":"15%"},0]
[200,"Gauteng","OVERNIGHT EXPRESS DELIVERY BETWEEN GAUTENG PROVINCE AND MPUMALANGA PROVINCE ABOVE 1KG LESS THAN 10KG",null,null,0,{"v":0.15,"d":"15%"},0]
[210,"Gauteng","OVERNIGHT EXPRESS DELIVERY BETWEEN GAUTENG PROVINCE AND NORTHERN CAPE PROVINCE ABOVE 1KG LESS THAN 10KG",null,null,0,{"v":0.15,"d":"15%"},0]
[2180,"Gauteng","OVERNIGHT EXPRESS DELIVERY WITHIN FREE STATE PROVINCE ABOVE 1KG LESS THAN 10KG",null,null,0,{"v":0.15,"d":"15%"},0]
[220,"Gauteng","OVERNIGHT EXPRESS DELIVERY BETWEEN GAUTENG PROVINCE AND WESTERN CAPE PROVINCE ABOVE 1KG LESS THAN 10KG",null,null,0,{"v":0.15,"d":"15%"},0]
[2210,"Gauteng","OVERNIGHT EXPRESS DELIVERY BETWEEN GAUTENG PROVINCE AND NORTH WEST PROVINCE ABOVE 1KG LESS THAN 10KG",null,null,0,{"v":0.15,"d":"15%"},0]
[2260,"Gauteng","OVERNIGHT EXPRESS DELIVERY BETWEEN GAUTENG PROVINCE AND KWAZULU NATAL PROVINCE ABOVE 10KG (PER KG)",null,null,0,{"v":0.15,"d":"15%"},0]
[2270,"Gauteng","OVERNIGHT EXPRESS DELIVERY BETWEEN GAUTENG PROVINCE AND NORTH WEST PROVINCE ABOVE 10KG (PER KG)",null,null,0,{"v":0.15,"d":"15%"},0]
[2280,"Gauteng","OVERNIGHT EXPRESS DELIVERY BETWEEN GAUTENG PROVINCE AND FREE STATE PROVINCE ABOVE 10KG (PER KG)",null,null,0,{"v":0.15,"d":"15%"},0]
[2330,"Gauteng","OVERNIGHT EXPRESS DELIVERY BETWEEN GAUTENG PROVINCE AND FREE STATE PROVINCE",null,null,0,{"v":0.15,"d":"15%"},0]
["Line Nr.","Province","Description","Unit Price\n(excl VAT)",null,null,"Extra per kg","Unit Price \n(incl VAT) If Applicable"]
[null,null,"ABOVE 1KG LESS THAN 10KG",null,null,{"$f":"D89+E89","v":0},{"v":0.15,"d":"15%"},{"$f":"F89+(F89*15%)","v":0}]
[2870,"Gauteng","OVERNIGHT EXPRESS DELIVERY BETWEEN GAUTENG PROVINCE AND EASTERN CAPE PROVINCE ABOVE 1KG LESS THAN 10KG",null,null,0,{"v":0.15,"d":"15%"},0]
[3100,"Gauteng","SAME DAY DELIVERY BETWEEN GAUTENG PROVINCE AND WESTERN CAPE PROVINCE ABOVE 10KG (PER KG)",null,null,0,{"v":0.15,"d":"15%"},0]
[3110,"Gauteng","SAME DAY DELIVERY BETWEEN GAUTENG PROVINCE AND NORTHERN CAPE PROVINCE ABOVE 10KG (PER KG)",null,null,0,{"v":0.15,"d":"15%"},0]
[3120,"Gauteng","SAME DAY DELIVERY BETWEEN GAUTENG PROVINCE AND MPUMALANGA PROVINCE ABOVE 10KG (PER KG)",null,null,0,{"v":0.15,"d":"15%"},0]
[3130,"Gauteng","SAME DAY DELIVERY BETWEEN GAUTENG PROVINCE AND LIMPOPO PROVINCE ABOVE 10KG (PER KG)",null,null,0,{"v":0.15,"d":"15%"},0]
[3460,"Gauteng","SAME DAY DELIVERY BETWEEN GAUTENG PROVINCE AND EASTERN CAPE PROVINCE ABOVE 10KG (PER KG)",null,null,0,{"v":0.15,"d":"15%"},0]
[3470,"Gauteng","SAME DAY DELIVERY BETWEEN GAUTENG PROVINCE AND KWAZULU NATAL PROVINCE ABOVE 10KG (PER KG)",null,null,0,{"v":0.15,"d":"15%"},0]
[3480,"Gauteng","PUBLIC HOLIDAY AND WEEKEND DELIVERY BETWEEN GAUTENG PROVINCE AND LIMPOPO PROVINCE ABOVE 10KG (PER KG)",null,null,0,{"v":0.15,"d":"15%"},0]
[3490,"Gauteng","PUBLIC HOLIDAY AND WEEKEND DELIVERY BETWEEN GAUTENG PROVINCE AND MPUMALANGA PROVINCE ABOVE 10KG (PER KG)",null,null,0,{"v":0.15,"d":"15%"},0]
[3500,"Gauteng","PUBLIC HOLIDAY AND WEEKEND DELIVERY BETWEEN GAUTENG PROVINCE AND NORTHERN CAPE PROVINCE ABOVE 10KG (PER KG)",null,null,0,{"v":0.15,"d":"15%"},0]
[3510,"Gauteng","PUBLIC HOLIDAY AND WEEKEND DELIVERY BETWEEN GAUTENG PROVINCE AND WESTERN CAPE PROVINCE ABOVE 10KG (PER KG)",null,null,0,{"v":0.15,"d":"15%"},0]
[3520,"Gauteng","PUBLIC HOLIDAY AND WEEKEND DELIVERY BETWEEN GAUTENG PROVINCE AND EASTERN CAPE PROVINCE ABOVE 10KG (PER KG)",null,null,0,{"v":0.15,"d":"15%"},0]
[3530,"Gauteng","PUBLIC HOLIDAY AND WEEKEND DELIVERY BETWEEN GAUTENG PROVINCE AND KWAZULU NATAL PROVINCE ABOVE 10KG (PER KG)",null,null,0,{"v":0.15,"d":"15%"},0]
[3540,"Gauteng","SAME DAY DELIVERY BETWEEN GAUTENG PROVINCE AND NORTH WEST PROVINCE ABOVE 10KG (PER KG)",null,null,0,{"v":0.15,"d":"15%"},0]
[3550,"Gauteng","SAME DAY DELIVERY BETWEEN GAUTENG PROVINCE AND FREE STATE PROVINCE ABOVE 10KG (PER KG)",null,null,0,{"v":0.15,"d":"15%"},0]
[3690,"Gauteng","PUBLIC HOLIDAY AND WEEKEND DELIVERY BETWEEN GAUTENG PROVINCE AND NORTH WEST PROVINCE ABOVE 10KG (PER KG)",null,null,0,{"v":0.15,"d":"15%"},0]
[3700,"Gauteng","PUBLIC HOLIDAY AND WEEKEND DELIVERY BETWEEN GAUTENG PROVINCE AND FREE STATE",null,null,0,{"v":0.15,"d":"15%"},0]
["7 of 22"]
["Line Nr.","Province","Description","Unit Price\n(excl VAT)",null,null,"Extra per kg","Unit Price \n(incl VAT) If Applicable"]
[null,null,"PROVINCE ABOVE 10KG (PER KG)",null,null,{"$f":"D109+E109","v":0},{"v":0.15,"d":"15%"},{"$f":"F109+(F109*15%)","v":0}]
[3760,"Gauteng","ECONOMY DELIVERY BETWEEN GAUTENG PROVINCE AND WESTERN CAPE PROVINCE ABOVE 10KG (PER KG)",null,null,0,{"v":0.15,"d":"15%"},0]
[3770,"Gauteng","ECONOMY DELIVERY BETWEEN GAUTENG PROVINCE AND NORTHERN CAPE PROVINCE ABOVE 10KG (PER KG)",null,null,0,{"v":0.15,"d":"15%"},0]
[3780,"Gauteng","ECONOMY DELIVERY BETWEEN GAUTENG PROVINCE AND MPUMALANGA PROVINCE ABOVE 10KG (PER KG)",null,null,0,{"v":0.15,"d":"15%"},0]
[3790,"Gauteng","ECONOMY DELIVERY BETWEEN GAUTENG PROVINCE AND LIMPOPO PROVINCE ABOVE 10KG (PER KG)",null,null,0,{"v":0.15,"d":"15%"},0]
[4410,"Gauteng","ECONOMY DELIVERY BETWEEN GAUTENG PROVINCE AND EASTERNCAPE PROVINCE ABOVE 10KG (PER KG)",null,null,0,{"v":0.15,"d":"15%"},0]
[4420,"Gauteng","ECONOMY DELIVERY BETWEEN GAUTENG PROVINCE AND FREE STATE PROVINCE ABOVE 10KG (PER KG)",null,null,0,{"v":0.15,"d":"15%"},0]
[4430,"Gauteng","ECONOMY DELIVERY BETWEEN GAUTENG PROVINCE AND KWAZULU NATAL PROVINCE ABOVE 10KG (PER KG)",null,null,0,{"v":0.15,"d":"15%"},0]
[4440,"Gauteng","ECONOMY DELIVERY BETWEEN GAUTENG PROVINCE AND NORTH WEST PROVINCE ABOVE 10KG (PER KG)",null,null,0,{"v":0.15,"d":"15%"},0]
[2250,"Gauteng","OVERNIGHT EXPRESS DELIVERY BETWEEN GAUTENG PROVINCE AND EASTERN CAPE PROVINCE ABOVE 10KG (PER KG)",null,null,0,{"v":0.15,"d":"15%"},0]
[2290,"Gauteng- Within","OVERNIGHT EXPRESS DELIVERY WITHIN GAUTENG PROVINCE ABOVE 1KG LESS THAN 10KG",null,null,0,{"v":0.15,"d":"15%"},0]
[2710,"Gauteng- Within","SAME DAY DELIVERY WITHIN GAUTENG PROVINCE ABOVE 1KG LESS THAN 10KG",null,null,0,{"v":0.15,"d":"15%"},0]
[2770,"Gauteng- Within","PUBLIC HOLIDAY AND WEEKEND DELIVERY WITHIN GAUTENG PROVINCE ABOVE 10KG (PER KG)",null,null,0,{"v":0.15,"d":"15%"},0]
[2780,"Gauteng- Within","SAME DAY DELIVERY WITHIN GAUTENG PROVINCE ABOVE 10KG (PER KG)",null,null,0,{"v":0.15,"d":"15%"},0]
[2790,"Gauteng- Within","ECONOMY DELIVERY WITHIN GAUTENG PROVINCE ABOVE 1KG LESS THAN 10KG",null,null,0,{"v":0.15,"d":"15%"},0]
[2800,"Gauteng- Within","PUBLIC HOLIDAY AND WEEKEND DELIVERY WITHIN GAUTENG PROVINCE ABOVE 1KG LESS THAN 10KG",null,null,0,{"v":0.15,"d":"15%"},0]
[2820,"Gauteng- Within","ECONOMY DELIVERY WITHIN GAUTENG PROVINCE ABOVE 10KG (PER KG)",null,null,0,{"v":0.15,"d":"15%"},0]
[2950,"Gauteng- Within","OVERNIGHT EXPRESS DELIVERY WITHIN GAUTENG PROVINCE ABOVE 10KG (PER KG)",null,null,0,{"v":0.15,"d":"15%"},0]
[2600,"Kwazulu Natal","OVERNIGHT EXPRESS DELIVERY BETWEEN KWAZULU NATAL PROVINCE AND NORTH WEST PROVINCE ABOVE 10KG (PER KG)",null,null,0,{"v":0.15,"d":"15%"},0]
[2610,"Kwazulu Natal","OVERNIGHT EXPRESS DELIVERY BETWEEN KWAZULU NATAL PROVINCE AND FREE STATE PROVINCE ABOVE 10KG (PER KG)",null,null,0,{"v":0.15,"d":"15%"},0]
["Line Nr.","Province","Description","Unit Price\n(excl VAT)",null,null,"Extra per kg","Unit Price \n(incl VAT) If Applicable"]
[100,"Kwazulu Natal","OVERNIGHT EXPRESS DELIVERY BETWEEN KWAZULU NATAL PROVINCE AND NORTH WEST PROVINCE ABOVE 1KG LESS THAN 10KG",null,null,{"$f":"D130+E130","v":0},{"v":0.15,"d":"15%"},{"$f":"F130+(F130*15%)","v":0}]
[110,"Kwazulu Natal","OVERNIGHT EXPRESS DELIVERY BETWEEN KWAZULU NATAL PROVINCE AND FREE STATE PROVINCE ABOVE 1KG LESS THAN 10KG",null,null,0,{"v":0.15,"d":"15%"},0]
[1360,"Kwazulu Natal","SAME DAY DELIVERY BETWEEN KWAZULU NATAL PROVINCE AND NORTH WEST PROVINCE ABOVE 1KG LESS THAN 10KG",null,null,0,{"v":0.15,"d":"15%"},0]
[1370,"Kwazulu Natal","SAME DAY DELIVERY BETWEEN KWAZULU NATAL PROVINCE AND FREE STATE PROVINCE ABOVE 1KG LESS THAN 10KG",null,null,0,{"v":0.15,"d":"15%"},0]
[1760,"Kwazulu Natal","PUBLIC HOLIDAY AND WEEKEND DELIVERY BETWEEN KWAZULU NATAL PROVINCE AND NORTH WEST PROVINCE ABOVE 1KG LESS THAN 10KG",null,null,0,{"v":0.15,"d":"15%"},0]
[1770,"Kwazulu Natal","PUBLIC HOLIDAY AND WEEKEND DELIVERY BETWEEN KWAZULU NATAL PROVINCE AND FREE STATE PROVINCE ABOVE 1KG LESS THAN 10KG",null,null,0,{"v":0.15,"d":"15%"},0]
[2150,"Kwazulu Natal","ECONOMY DELIVERY BETWEEN KWAZULU NATAL PROVINCE AND NORTH WEST PROVINCE ABOVE 1KG LESS THAN 10KG",null,null,0,{"v":0.15,"d":"15%"},0]
[2160,"Kwazulu Natal","ECONOMY DELIVERY BETWEEN KWAZULU NATAL PROVINCE AND FREE STATE PROVINCE ABOVE 1KG LESS THAN 10KG",null,null,0,{"v":0.15,"d":"15%"},0]
[3300,"Kwazulu Natal","SAME DAY DELIVERY BETWEEN KWAZULU NATAL PROVINCE AND NORTH WEST PROVINCE ABOVE 10KG (PER KG)",null,null,0,{"v":0.15,"d":"15%"},0]
[3310,"Kwazulu Natal","SAME DAY DELIVERY BETWEEN KWAZULU NATAL PROVINCE AND FREE STATE PROVINCE ABOVE 10KG (PER KG)",null,null,0,{"v":0.15,"d":"15%"},0]
[3820,"Kwazulu Natal","ECONOMY DELIVERY BETWEEN KWAZULU NATAL PROVINCE AND FREE STATE PROVINCE ABOVE 10KG (PER KG)",null,null,0,{"v":0.15,"d":"15%"},0]
[3830,"Kwazulu Natal","ECONOMY DELIVERY BETWEEN KWAZULU NATAL PROVINCE AND NORTH WEST PROVINCE ABOVE 10KG (PER KG)",null,null,0,{"v":0.15,"d":"15%"},0]
[4150,"Kwazulu Natal","PUBLIC HOLIDAY AND WEEKEND DELIVERY BETWEEN KWAZULU NATAL PROVINCE AND NORTH WEST PROVINCE ABOVE 10KG (PER KG)",null,null,0,{"v":0.15,"d":"15%"},0]
[4480,"Kwazulu Natal","PUBLIC HOLIDAY AND WEEKEND DELIVERY BETWEEN KWAZULU NATAL PROVINCE AND FREE STATE PROVINCE ABOVE 10KG (PER KG)",null,null,0,{"v":0.15,"d":"15%"},0]
[3170,"Kwazulu Natal - Within","SAME DAY DELIVERY WITHIN KWAZULU NATAL PROVINCE ABOVE 1KG LESS THAN 10KG",null,null,0,{"v":0.15,"d":"15%"},0]
[3670,"Kwazulu Natal - Within","SAME DAY DELIVERY WITHIN KWAZULU NATAL PROVINCE ABOVE 10KG (PER KG)",null,null,0,{"v":0.15,"d":"15%"},0]
[4400,"Kwazulu Natal - Within","PUBLIC HOLIDAY AND WEEKEND DELIVERY WITHIN KWAZULU NATAL PROVINCE ABOVE 10KG (PER KG)",null,null,0,{"v":0.15,"d":"15%"},0]
[4090,"Kwazulu Natal - Within","ECONOMY DELIVERY WITHIN KWAZULU NATAL PROVINCE ABOVE 10KG (PER KG)",null,null,0,{"v":0.15,"d":"15%"},0]
["9 of 22"]
["Line Nr.","Province","Description","Unit Price\n(excl VAT)",null,null,"Extra per kg","Unit Price \n(incl VAT) If Applicable"]
[2920,"Kwazulu Natal - Within","OVERNIGHT EXPRESS DELIVERY WITHIN KWAZULU NATAL PROVINCE ABOVE 1KG LESS THAN 10KG",null,null,{"$f":"D150+E150","v":0},{"v":0.15,"d":"15%"},{"$f":"F150+(F150*15%)","v":0}]
[3090,"Kwazulu Natal - Within","ECONOMY DELIVERY WITHIN KWAZULU NATAL PROVINCE ABOVE 1KG LESS THAN 10KG",null,null,0,{"v":0.15,"d":"15%"},0]
[3440,"Kwazulu Natal - Within","PUBLIC HOLIDAY AND WEEKEND DELIVERY WITHIN KWAZULU NATAL PROVINCE ABOVE 1KG LESS THAN 10KG",null,null,0,{"v":0.15,"d":"15%"},0]
[2990,"Kwazulu Natal - Within","OVERNIGHT EXPRESS DELIVERY WITHIN KWAZULU NATAL PROVINCE ABOVE 10KG (PER KG)",null,null,0,{"v":0.15,"d":"15%"},0]
[1090,"Limpopo","OVERNIGHT EXPRESS DELIVERY BETWEEN LIMPOPO PROVINCE AND KWAZULU NATAL PROVINCE ABOVE 1KG LESS THAN 10KG",null,null,0,{"v":0.15,"d":"15%"},0]
[1100,"Limpopo","SAME DAY DELIVERY BETWEEN LIMPOPO PROVINCE AND MPUMALANGA PROVINCE ABOVE 1KG LESS THAN 10KG",null,null,0,{"v":0.15,"d":"15%"},0]
[1110,"Limpopo","SAME DAY DELIVERY BETWEEN LIMPOPO PROVINCE AND NORTHERN CAPE PROVINCE ABOVE 1KG LESS THAN 10KG",null,null,0,{"v":0.15,"d":"15%"},0]
[1120,"Limpopo","SAME DAY DELIVERY BETWEEN LIMPOPO PROVINCE AND WESTERN CAPE PROVINCE ABOVE 1KG LESS THAN 10KG",null,null,0,{"v":0.15,"d":"15%"},0]
[1130,"Limpopo","SAME DAY DELIVERY BETWEEN LIMPOPO PROVINCE AND EASTERN CAPE PROVINCE ABOVE 1KG LESS THAN 10KG",null,null,0,{"v":0.15,"d":"15%"},0]
[1140,"Limpopo","SAME DAY DELIVERY BETWEEN LIMPOPO PROVINCE AND KWAZULU NATAL PROVINCE ABOVE 1KG LESS THAN 10KG",null,null,0,{"v":0.15,"d":"15%"},0]
[1150,"Limpopo","SAME DAY DELIVERY BETWEEN LIMPOPO PROVINCE AND NORTH WEST PROVINCE ABOVE 1KG LESS THAN 10KG",null,null,0,{"v":0.15,"d":"15%"},0]
[1160,"Limpopo","SAME DAY DELIVERY BETWEEN LIMPOPO PROVINCE AND FREE STATE PROVINCE ABOVE 1KG LESS THAN 10KG",null,null,0,{"v":0.15,"d":"15%"},0]
[1310,"Limpopo","OVERNIGHT EXPRESS DELIVERY BETWEEN LIMPOPO PROVINCE AND NORTH WEST PROVINCE ABOVE 1KG LESS THAN 10KG",null,null,0,{"v":0.15,"d":"15%"},0]
[1420,"Limpopo","OVERNIGHT EXPRESS DELIVERY BETWEEN LIMPOPO PROVINCE AND FREE STATE PROVINCE ABOVE 1KG LESS THAN 10KG",null,null,0,{"v":0.15,"d":"15%"},0]
[1480,"Limpopo","PUBLIC HOLIDAY AND WEEKEND DELIVERY BETWEEN LIMPOPO PROVINCE AND MPUMALANGA PROVINCE ABOVE 1KG LESS THAN 10KG",null,null,0,{"v":0.15,"d":"15%"},0]
[1490,"Limpopo","PUBLIC HOLIDAY AND WEEKEND DELIVERY BETWEEN LIMPOPO PROVINCE AND NORTHERN CAPE PROVINCE ABOVE 1KG LESS THAN 10KG",null,null,0,{"v":0.15,"d":"15%"},0]
[1500,"Limpopo","PUBLIC HOLIDAY AND WEEKEND DELIVERY BETWEEN LIMPOPO PROVINCE AND WESTERN CAPE PROVINCE ABOVE 1KG LESS THAN 10KG",null,null,0,{"v":0.15,"d":"15%"},0]
[1510,"Limpopo","PUBLIC HOLIDAY AND WEEKEND DELIVERY BETWEEN LIMPOPO PROVINCE AND EASTERN CAPE PROVINCE ABOVE 1KG LESS THAN 10KG",null,null,0,{"v":0.15,"d":"15%"},0]
["Line Nr.","Province","Description","Unit Price\n(excl VAT)",null,null,"Extra per kg","Unit Price \n(incl VAT) If Applicable"]
[1520,"Limpopo","PUBLIC HOLIDAY AND WEEKEND DELIVERY BETWEEN LIMPOPO PROVINCE AND KWAZULU NATAL PROVINCE ABOVE 1KG LESS THAN 10KG",null,null,{"$f":"D169+E169","v":0},{"v":0.15,"d":"15%"},{"$f":"F169+(F169*15%)","v":0}]
[1540,"Limpopo","PUBLIC HOLIDAY AND WEEKEND DELIVERY BETWEEN LIMPOPO PROVINCE AND NORTH WEST PROVINCE ABOVE 1KG LESS THAN 10KG",null,null,0,{"v":0.15,"d":"15%"},0]
[1550,"Limpopo","PUBLIC HOLIDAY AND WEEKEND DELIVERY BETWEEN LIMPOPO PROVINCE AND FREE STATE PROVINCE ABOVE 1KG LESS THAN 10KG",null,null,0,{"v":0.15,"d":"15%"},0]
[1880,"Limpopo","ECONOMY DELIVERY BETWEEN LIMPOPO PROVINCE AND MPUMALANGA PROVINCE ABOVE 1KG LESS THAN 10KG",null,null,0,{"v":0.15,"d":"15%"},0]
[1890,"Limpopo","ECONOMY DELIVERY BETWEEN LIMPOPO PROVINCE AND NORTHERN CAPE PROVINCE ABOVE 1KG LESS THAN 10KG",null,null,0,{"v":0.15,"d":"15%"},0]
[1900,"Limpopo","ECONOMY DELIVERY BETWEEN LIMPOPO PROVINCE AND WESTERNCAPE PROVINCE ABOVE 1KG LESS THAN 10KG",null,null,0,{"v":0.15,"d":"15%"},0]
[1910,"Limpopo","ECONOMY DELIVERY BETWEEN LIMPOPO PROVINCE AND EASTERNCAPE PROVINCE ABOVE 1KG LESS THAN 10KG",null,null,0,{"v":0.15,"d":"15%"},0]
[1920,"Limpopo","ECONOMY DELIVERY BETWEEN LIMPOPO PROVINCE AND KWAZULU NATAL PROVINCE ABOVE 1KG LESS THAN 10KG",null,null,0,{"v":0.15,"d":"15%"},0]
[1930,"Limpopo","ECONOMY DELIVERY BETWEEN LIMPOPO PROVINCE AND NORTH WEST PROVINCE ABOVE 1KG LESS THAN 10KG",null,null,0,{"v":0.15,"d":"15%"},0]
[1940,"Limpopo","ECONOMY DELIVERY BETWEEN LIMPOPO PROVINCE AND FREE STATE PROVINCE ABOVE 1KG LESS THAN 10KG",null,null,0,{"v":0.15,"d":"15%"},0]
[2310,"Limpopo","OVERNIGHT EXPRESS DELIVERY BETWEEN LIMPOPO PROVINCE AND NORTHERN CAPE PROVINCE ABOVE 10KG (PER KG)",null,null,0,{"v":0.15,"d":"15%"},0]
[2320,"Limpopo","OVERNIGHT EXPRESS DELIVERY BETWEEN LIMPOPO PROVINCE AND WESTERN CAPE PROVINCE ABOVE 10KG (PER KG)",null,null,0,{"v":0.15,"d":"15%"},0]
[2340,"Limpopo","OVERNIGHT EXPRESS DELIVERY BETWEEN LIMPOPO PROVINCE AND EASTERN CAPE PROVINCE ABOVE 10KG (PER KG)",null,null,0,{"v":0.15,"d":"15%"},0]
[2350,"Limpopo","OVERNIGHT EXPRESS DELIVERY BETWEEN LIMPOPO PROVINCE AND KWAZULU NATAL PROVINCE ABOVE 10KG (PER KG)",null,null,0,{"v":0.15,"d":"15%"},0]
[2360,"Limpopo","OVERNIGHT EXPRESS DELIVERY BETWEEN LIMPOPO PROVINCE AND NORTH WEST PROVINCE ABOVE 10KG (PER KG)",null,null,0,{"v":0.15,"d":"15%"},0]
[2370,"Limpopo","OVERNIGHT EXPRESS DELIVERY BETWEEN LIMPOPO PROVINCE AND FREE STATE PROVINCE ABOVE 10KG (PER KG)",null,null,0,{"v":0.15,"d":"15%"},0]
[2450,"Limpopo","OVERNIGHT EXPRESS DELIVERY BETWEEN LIMPOPO PROVINCE AND MPUMALANGA PROVINCE ABOVE 1KG LESS THAN 10KG",null,null,0,{"v":0.15,"d":"15%"},0]
["11 of 22"]
["Line Nr.","Province","Description","Unit Price\n(excl VAT)",null,null,"Extra per kg","Unit Price \n(incl VAT) If Applicable"]
[2570,"Limpopo","OVERNIGHT EXPRESS DELIVERY BETWEEN LIMPOPO PROVINCE AND WESTERN CAPE PROVINCE ABOVE 1KG LESS THAN 10KG",null,null,{"$f":"D188+E188","v":0},{"v":0.15,"d":"15%"},{"$f":"F188+(F188*15%)","v":0}]
[2690,"Limpopo","OVERNIGHT EXPRESS DELIVERY BETWEEN LIMPOPO PROVINCE AND NORTHERN CAPE PROVINCE ABOVE 1KG LESS THAN 10KG",null,null,0,{"v":0.15,"d":"15%"},0]
[2810,"Limpopo","OVERNIGHT EXPRESS DELIVERY BETWEEN LIMPOPO PROVINCE AND EASTERN CAPE PROVINCE ABOVE 1KG LESS THAN 10KG",null,null,0,{"v":0.15,"d":"15%"},0]
[3560,"Limpopo","SAME DAY DELIVERY BETWEEN LIMPOPO PROVINCE AND MPUMALANGA PROVINCE ABOVE 10KG (PER KG)",null,null,0,{"v":0.15,"d":"15%"},0]
[3570,"Limpopo","SAME DAY DELIVERY BETWEEN LIMPOPO PROVINCE AND NORTHERN CAPE PROVINCE ABOVE 10KG (PER KG)",null,null,0,{"v":0.15,"d":"15%"},0]
[3580,"Limpopo","SAME DAY DELIVERY BETWEEN LIMPOPO PROVINCE AND WESTERN CAPE PROVINCE ABOVE 10KG (PER KG)",null,null,0,{"v":0.15,"d":"15%"},0]
[3590,"Limpopo","SAME DAY DELIVERY BETWEEN LIMPOPO PROVINCE AND EASTERN CAPE PROVINCE ABOVE 10KG (PER KG)",null,null,0,{"v":0.15,"d":"15%"},0]
[3600,"Limpopo","SAME DAY DELIVERY BETWEEN LIMPOPO PROVINCE AND KWAZULU NATAL PROVINCE ABOVE 10KG (PER KG)",null,null,0,{"v":0.15,"d":"15%"},0]
[3610,"Limpopo","SAME DAY DELIVERY BETWEEN LIMPOPO PROVINCE AND NORTH WEST PROVINCE ABOVE 10KG (PER KG)",null,null,0,{"v":0.15,"d":"15%"},0]
[3620,"Limpopo","SAME DAY DELIVERY BETWEEN LIMPOPO PROVINCE AND FREE STATE PROVINCE ABOVE 10KG (PER KG)",null,null,0,{"v":0.15,"d":"15%"},0]
[3710,"Limpopo","PUBLIC HOLIDAY AND WEEKEND DELIVERY BETWEEN LIMPOPO PROVINCE AND MPUMALANGA PROVINCE ABOVE 10KG (PER KG)",null,null,0,{"v":0.15,"d":"15%"},0]
[3720,"Limpopo","PUBLIC HOLIDAY AND WEEKEND DELIVERY BETWEEN LIMPOPO PROVINCE AND NORTHERN CAPE PROVINCE ABOVE 10KG (PER KG)",null,null,0,{"v":0.15,"d":"15%"},0]
[3800,"Limpopo","ECONOMY DELIVERY BETWEEN LIMPOPO PROVINCE AND FREE STATE PROVINCE ABOVE 10KG (PER KG)",null,null,0,{"v":0.15,"d":"15%"},0]
[3810,"Limpopo","ECONOMY DELIVERY BETWEEN LIMPOPO PROVINCE AND KWAZULU NATAL PROVINCE ABOVE 10KG (PER KG)",null,null,0,{"v":0.15,"d":"15%"},0]
[3840,"Limpopo","ECONOMY DELIVERY BETWEEN LIMPOPO PROVINCE AND EASTERNCAPE PROVINCE ABOVE 10KG (PER KG)",null,null,0,{"v":0.15,"d":"15%"},0]
[3850,"Limpopo","Economy Delivery between Limpopo province and Gauteng province above  1kg less than 10kg",null,null,0,{"v":0.15,"d":"15%"},0]
[3860,"Limpopo","Economy Delivery between Limpopo province and Gauteng province above 10kg  less than 1Ton (per kg)",null,null,0,{"v":0.15,"d":"15%"},0]
[3870,"Limpopo","ECONOMY DELIVERY BETWEEN LIMPOPO PROVINCE AND MPUMALANGA PROVINCE ABOVE 10KG (PER KG)",null,null,0,{"v":0.15,"d":"15%"},0]
["Line Nr.","Province","Description","Unit Price\n(excl VAT)",null,null,"Extra per kg","Unit Price \n(incl VAT) If Applicable"]
[3880,"Limpopo","ECONOMY DELIVERY BETWEEN LIMPOPO PROVINCE AND NORTH WEST PROVINCE ABOVE 10KG (PER KG)",null,null,{"$f":"D207+E207","v":0},{"v":0.15,"d":"15%"},{"$f":"F207+(F207*15%)","v":0}]
[3890,"Limpopo","ECONOMY DELIVERY BETWEEN LIMPOPO PROVINCE AND NORTHERN CAPE PROVINCE ABOVE 10KG (PER KG)",null,null,0,{"v":0.15,"d":"15%"},0]
[3900,"Limpopo","ECONOMY DELIVERY BETWEEN LIMPOPO PROVINCE AND WESTERNCAPE PROVINCE ABOVE 10KG (PER KG)",null,null,0,{"v":0.15,"d":"15%"},0]
[4110,"Limpopo","Overnight Express Delivery between Limpopo province and Gauteng province above  1kg less than 10kg",null,null,0,{"v":0.15,"d":"15%"},0]
[4170,"Limpopo","PUBLIC HOLIDAY AND WEEKEND DELIVERY BETWEEN LIMPOPO PROVINCE AND FREE STATE PROVINCE ABOVE 10KG (PER KG)",null,null,0,{"v":0.15,"d":"15%"},0]
[4180,"Limpopo","Public Holiday and Weekend Delivery between Limpopo province and Gauteng province above  1kg less than 10kg",null,null,0,{"v":0.15,"d":"15%"},0]
[4190,"Limpopo","Public Holiday and Weekend Delivery between Limpopo province and Gauteng province above 10kg  less than 1Ton (per kg)",null,null,0,{"v":0.15,"d":"15%"},0]
[4200,"Limpopo","PUBLIC HOLIDAY AND WEEKEND DELIVERY BETWEEN LIMPOPO PROVINCE AND KWAZULU NATAL PROVINCE ABOVE 10KG (PER KG)",null,null,0,{"v":0.15,"d":"15%"},0]
[4230,"Limpopo","PUBLIC HOLIDAY AND WEEKEND DELIVERY BETWEEN LIMPOPO PROVINCE AND WESTERN CAPE PROVINCE ABOVE 10KG (PER KG)",null,null,0,{"v":0.15,"d":"15%"},0]
[4240,"Limpopo","PUBLIC HOLIDAY AND WEEKEND DELIVERY BETWEEN LIMPOPO PROVINCE AND NORTH WEST PROVINCE ABOVE 10KG (PER KG)",null,null,0,{"v":0.15,"d":"15%"},0]
[4360,"Limpopo","Same Day Delivery between Limpopo province and Gauteng province above  1kg less than 10kg",null,null,0,{"v":0.15,"d":"15%"},0]
[4160,"Limpopo","PUBLIC HOLIDAY AND WEEKEND DELIVERY BETWEEN LIMPOPO PROVINCE AND EASTERN CAPE PROVINCE ABOVE 10KG (PER KG)",null,null,0,{"v":0.15,"d":"15%"},0]
[3630,"Limpopo - Within","SAME DAY DELIVERY WITHIN LIMPOPO PROVINCE ABOVE 10KG (PER KG)",null,null,0,{"v":0.15,"d":"15%"},0]
[4100,"Limpopo","Overnight Express Delivery between Limpopo province and Gauteng province above 10kg  less than 1Ton (per kg)",null,null,0,{"v":0.15,"d":"15%"},0]
[4350,"Limpopo","Same Day Delivery between Limpopo province and Gauteng province above 10kg  less than 1Ton (per kg)",null,null,0,{"v":0.15,"d":"15%"},0]
[2890,"Limpopo - Within","OVERNIGHT EXPRESS DELIVERY WITHIN LIMPOPO PROVINCE ABOVE 1KG LESS THAN 10KG",null,null,0,{"v":0.15,"d":"15%"},0]
[4070,"Limpopo - Within","ECONOMY DELIVERY WITHIN LIMPOPO PROVINCE ABOVE 10KG (PER KG)",null,null,0,{"v":0.15,"d":"15%"},0]
[2960,"Limpopo - Within","OVERNIGHT EXPRESS DELIVERY WITHIN LIMPOPO PROVINCE ABOVE 10KG (PER KG)",null,null,0,{"v":0.15,"d":"15%"},0]
[3010,"Limpopo - Within","ECONOMY DELIVERY WITHIN LIMPOPO PROVINCE ABOVE 1KG LESS THAN 10KG",null,null,0,{"v":0.15,"d":"15%"},0]
[3030,"Limpopo - Within","SAME DAY DELIVERY WITHIN LIMPOPO PROVINCE ABOVE 1KG LESS THAN 10KG",null,null,0,{"v":0.15,"d":"15%"},0]
["13 of 22"]
["Line Nr.","Province","Description","Unit Price\n(excl VAT)",null,null,"Extra per kg","Unit Price \n(incl VAT) If Applicable"]
[3400,"Limpopo - Within","PUBLIC HOLIDAY AND WEEKEND DELIVERY WITHIN LIMPOPO PROVINCE ABOVE 1KG LESS THAN 10KG",null,null,{"$f":"D229+E229","v":0},{"v":0.15,"d":"15%"},{"$f":"F229+(F229*15%)","v":0}]
[4370,"Limpopo - Within","PUBLIC HOLIDAY AND WEEKEND DELIVERY WITHIN LIMPOPO PROVINCE ABOVE 10KG (PER KG)",null,null,0,{"v":0.15,"d":"15%"},0]
[1170,"Mpumalanga","SAME DAY DELIVERY BETWEEN MPUMALANGA PROVINCE AND NORTHERN CAPE PROVINCE ABOVE 1KG LESS THAN 10KG",null,null,0,{"v":0.15,"d":"15%"},0]
[1180,"Mpumalanga","SAME DAY DELIVERY BETWEEN MPUMALANGA PROVINCE AND WESTERN CAPE PROVINCE ABOVE 1KG LESS THAN 10KG",null,null,0,{"v":0.15,"d":"15%"},0]
[1190,"Mpumalanga","SAME DAY DELIVERY BETWEEN MPUMALANGA PROVINCE AND EASTERN CAPE PROVINCE ABOVE 1KG LESS THAN 10KG",null,null,0,{"v":0.15,"d":"15%"},0]
[1210,"Mpumalanga","SAME DAY DELIVERY BETWEEN MPUMALANGA PROVINCE AND NORTH WEST PROVINCE ABOVE 1KG LESS THAN 10KG",null,null,0,{"v":0.15,"d":"15%"},0]
[1220,"Mpumalanga","SAME DAY DELIVERY BETWEEN MPUMALANGA PROVINCE AND KWAZULU NATAL PROVINCE ABOVE 1KG LESS THAN 10KG",null,null,0,{"v":0.15,"d":"15%"},0]
[1230,"Mpumalanga","SAME DAY DELIVERY BETWEEN MPUMALANGA PROVINCE AND FREE STATE PROVINCE ABOVE 1KG LESS THAN 10KG",null,null,0,{"v":0.15,"d":"15%"},0]
[1530,"Mpumalanga","OVERNIGHT EXPRESS DELIVERY BETWEEN MPUMALANGA PROVINCE AND NORTHERN CAPE PROVINCE ABOVE 1KG LESS THAN 10KG",null,null,0,{"v":0.15,"d":"15%"},0]
[1560,"Mpumalanga","PUBLIC HOLIDAY AND WEEKEND DELIVERY BETWEEN MPUMALANGA PROVINCE AND NORTHERN CAPE PROVINCE ABOVE 1KG LESS THAN 10KG",null,null,0,{"v":0.15,"d":"15%"},0]
[1570,"Mpumalanga","PUBLIC HOLIDAY AND WEEKEND DELIVERY BETWEEN MPUMALANGA PROVINCE AND EASTERN CAPE PROVINCE ABOVE 1KG LESS THAN 10KG",null,null,0,{"v":0.15,"d":"15%"},0]
[1580,"Mpumalanga","PUBLIC HOLIDAY AND WEEKEND DELIVERY BETWEEN MPUMALANGA PROVINCE AND WESTERN CAPE PROVINCE ABOVE 1KG LESS THAN 10KG",null,null,0,{"v":0.15,"d":"15%"},0]
[1590,"Mpumalanga","PUBLIC HOLIDAY AND WEEKEND DELIVERY BETWEEN MPUMALANGA PROVINCE AND KWAZULU NATAL PROVINCE ABOVE 1KG LESS THAN 10KG",null,null,0,{"v":0.15,"d":"15%"},0]
[1600,"Mpumalanga","PUBLIC HOLIDAY AND WEEKEND DELIVERY BETWEEN MPUMALANGA PROVINCE AND NORTH WEST PROVINCE ABOVE 1KG LESS THAN 10KG",null,null,0,{"v":0.15,"d":"15%"},0]
[1610,"Mpumalanga","PUBLIC HOLIDAY AND WEEKEND DELIVERY BETWEEN MPUMALANGA PROVINCE AND FREE STATE PROVINCE ABOVE 1KG LESS THAN 10KG",null,null,0,{"v":0.15,"d":"15%"},0]
[1640,"Mpumalanga","OVERNIGHT EXPRESS DELIVERY BETWEEN MPUMALANGA PROVINCE AND WESTERN CAPE PROVINCE ABOVE 1KG LESS THAN 10KG",null,null,0,{"v":0.15,"d":"15%"},0]
[1750,"Mpumalanga","OVERNIGHT EXPRESS DELIVERY BETWEEN MPUMALANGA PROVINCE AND EASTERN CAPE",null,null,0,{"v":0.15,"d":"15%"},0]
["Line Nr.","Province","Description","Unit Price\n(excl VAT)",null,null,"Extra per kg","Unit Price \n(incl VAT) If Applicable"]
[null,null,"PROVINCE ABOVE 1KG LESS THAN 10KG",null,null,{"$f":"D247+E247","v":0},{"v":0.15,"d":"15%"},{"$f":"F247+(F247*15%)","v":0}]
[1860,"Mpumalanga","OVERNIGHT EXPRESS DELIVERY BETWEEN MPUMALANGA PROVINCE AND KWAZULU NATAL PROVINCE ABOVE 1KG LESS THAN 10KG",null,null,0,{"v":0.15,"d":"15%"},0]
[1950,"Mpumalanga","ECONOMY DELIVERY BETWEEN MPUMALANGA PROVINCE AND NORTHERN CAPE PROVINCE ABOVE 1KG LESS THAN 10KG",null,null,0,{"v":0.15,"d":"15%"},0]
[1960,"Mpumalanga","ECONOMY DELIVERY BETWEEN MPUMALANGA PROVINCE AND WESTERN CAPE PROVINCE ABOVE 1KG LESS THAN 10KG",null,null,0,{"v":0.15,"d":"15%"},0]
[1970,"Mpumalanga","OVERNIGHT EXPRESS DELIVERY BETWEEN MPUMALANGA PROVINCE AND NORTH WEST PROVINCE ABOVE 1KG LESS THAN 10KG",null,null,0,{"v":0.15,"d":"15%"},0]
[1980,"Mpumalanga","ECONOMY DELIVERY BETWEEN MPUMALANGA PROVINCE AND EASTERN CAPE PROVINCE ABOVE 1KG LESS THAN 10KG",null,null,0,{"v":0.15,"d":"15%"},0]
[1990,"Mpumalanga","ECONOMY DELIVERY BETWEEN MPUMALANGA PROVINCE AND KWAZULU NATAL  PROVINCE ABOVE 1KG LESS THAN 10KG",null,null,0,{"v":0.15,"d":"15%"},0]
[2000,"Mpumalanga","ECONOMY DELIVERY BETWEEN MPUMALANGA PROVINCE AND NORTH WEST  PROVINCE ABOVE 1KG LESS THAN 10KG",null,null,0,{"v":0.15,"d":"15%"},0]
[2010,"Mpumalanga","ECONOMY DELIVERY BETWEEN MPUMALANGA PROVINCE AND FREE STATE PROVINCE ABOVE 1KG LESS THAN 10KG",null,null,0,{"v":0.15,"d":"15%"},0]
[2380,"Mpumalanga","OVERNIGHT EXPRESS DELIVERY BETWEEN MPUMALANGA PROVINCE AND NORTHERN CAPE PROVINCE ABOVE 10KG (PER KG)",null,null,0,{"v":0.15,"d":"15%"},0]
[2390,"Mpumalanga","OVERNIGHT EXPRESS DELIVERY BETWEEN MPUMALANGA PROVINCE AND WESTERN CAPE PROVINCE ABOVE 10KG (PER KG)",null,null,0,{"v":0.15,"d":"15%"},0]
[2410,"Mpumalanga","OVERNIGHT EXPRESS DELIVERY BETWEEN MPUMALANGA PROVINCE AND EASTERN CAPE PROVINCE ABOVE 10KG (PER KG)",null,null,0,{"v":0.15,"d":"15%"},0]
[2420,"Mpumalanga","OVERNIGHT EXPRESS DELIVERY BETWEEN MPUMALANGA PROVINCE AND KWAZULU NATAL PROVINCE ABOVE 10KG (PER KG)",null,null,0,{"v":0.15,"d":"15%"},0]
[2430,"Mpumalanga","OVERNIGHT EXPRESS DELIVERY BETWEEN MPUMALANGA PROVINCE AND NORTH WEST PROVINCE ABOVE 10KG (PER KG)",null,null,0,{"v":0.15,"d":"15%"},0]
[2440,"Mpumalanga","OVERNIGHT EXPRESS DELIVERY BETWEEN MPUMALANGA PROVINCE AND FREE STATE PROVINCE ABOVE 10KG (PER KG)",null,null,0,{"v":0.15,"d":"15%"},0]
[2880,"Mpumalanga","OVERNIGHT EXPRESS DELIVERY BETWEEN MPUMALANGA PROVINCE AND FREE STATE PROVINCE ABOVE 1KG LESS THAN 10KG",null,null,0,{"v":0.15,"d":"15%"},0]
[3330,"Mpumalanga","SAME DAY DELIVERY BETWEEN MPUMALANGA PROVINCE AND NORTHERN CAPE PROVINCE ABOVE 10KG (PER KG)",null,null,0,{"v":0.15,"d":"15%"},0]
[3340,"Mpumalanga","SAME DAY DELIVERY BETWEEN MPUMALANGA PROVINCE AND WESTERN CAPE PROVINCE ABOVE",null,null,0,{"v":0.15,"d":"15%"},0]
["15 of 22"]
["Line Nr.","Province","Description","Unit Price\n(excl VAT)",null,null,"Extra per kg","Unit Price \n(incl VAT) If Applicable"]
[null,null,"10KG (PER KG)",null,null,{"$f":"D267+E267","v":0},{"v":0.15,"d":"15%"},{"$f":"F267+(F267*15%)","v":0}]
[3350,"Mpumalanga","SAME DAY DELIVERY BETWEEN MPUMALANGA PROVINCE AND EASTERN CAPE PROVINCE ABOVE 10KG (PER KG)",null,null,0,{"v":0.15,"d":"15%"},0]
[3360,"Mpumalanga","SAME DAY DELIVERY BETWEEN MPUMALANGA PROVINCE AND KWAZULU NATAL PROVINCE ABOVE 10KG (PER KG)",null,null,0,{"v":0.15,"d":"15%"},0]
[3370,"Mpumalanga","SAME DAY DELIVERY BETWEEN MPUMALANGA PROVINCE AND NORTH WEST PROVINCE ABOVE 10KG (PER KG)",null,null,0,{"v":0.15,"d":"15%"},0]
[3380,"Mpumalanga","SAME DAY DELIVERY BETWEEN MPUMALANGA PROVINCE AND FREE STATE PROVINCE ABOVE 10KG (PER KG)",null,null,0,{"v":0.15,"d":"15%"},0]
[3910,"Mpumalanga","ECONOMY DELIVERY BETWEEN MPUMALANGA PROVINCE AND EASTERN CAPE PROVINCE ABOVE 10KG (PER KG)",null,null,0,{"v":0.15,"d":"15%"},0]
[3920,"Mpumalanga","ECONOMY DELIVERY BETWEEN MPUMALANGA PROVINCE AND NORTHERN CAPE PROVINCE ABOVE 10KG (PER KG)",null,null,0,{"v":0.15,"d":"15%"},0]
[3930,"Mpumalanga","ECONOMY DELIVERY BETWEEN MPUMALANGA PROVINCE AND WESTERN CAPE PROVINCE ABOVE 10KG (PER KG)",null,null,0,{"v":0.15,"d":"15%"},0]
[3940,"Mpumalanga","ECONOMY DELIVERY BETWEEN MPUMALANGA PROVINCE AND KWAZULU NATAL  PROVINCE ABOVE 10KG (PER KG)",null,null,0,{"v":0.15,"d":"15%"},0]
[3950,"Mpumalanga","ECONOMY DELIVERY BETWEEN MPUMALANGA PROVINCE AND FREE STATE PROVINCE ABOVE 10KG (PER KG)",null,null,0,{"v":0.15,"d":"15%"},0]
[3960,"Mpumalanga","ECONOMY DELIVERY BETWEEN MPUMALANGA PROVINCE AND NORTH WEST  PROVINCE ABOVE 10KG (PER KG)",null,null,0,{"v":0.15,"d":"15%"},0]
[4220,"Mpumalanga","PUBLIC HOLIDAY AND WEEKEND DELIVERY BETWEEN MPUMALANGA PROVINCE AND EASTERN CAPE PROVINCE ABOVE 10KG (PER KG)",null,null,0,{"v":0.15,"d":"15%"},0]
[4500,"Mpumalanga","PUBLIC HOLIDAY AND WEEKEND DELIVERY BETWEEN MPUMALANGA PROVINCE AND NORTHERN CAPE PROVINCE ABOVE 10KG (PER KG)",null,null,0,{"v":0.15,"d":"15%"},0]
[4510,"Mpumalanga","PUBLIC HOLIDAY AND WEEKEND DELIVERY BETWEEN MPUMALANGA PROVINCE AND WESTERN CAPE PROVINCE ABOVE 10KG (PER KG)",null,null,0,{"v":0.15,"d":"15%"},0]
[4520,"Mpumalanga","PUBLIC HOLIDAY AND WEEKEND DELIVERY BETWEEN MPUMALANGA PROVINCE AND KWAZULU NATAL PROVINCE ABOVE 10KG (PER KG)",null,null,0,{"v":0.15,"d":"15%"},0]
[4540,"Mpumalanga","PUBLIC HOLIDAY AND WEEKEND DELIVERY BETWEEN MPUMALANGA PROVINCE AND NORTH WEST PROVINCE ABOVE 10KG (PER KG)",null,null,0,{"v":0.15,"d":"15%"},0]
[4210,"Mpumalanga","PUBLIC HOLIDAY AND WEEKEND DELIVERY BETWEEN MPUMALANGA PROVINCE AND FREE STATE PROVINCE ABOVE 1KG LESS THAN 10KG",null,null,0,{"v":0.15,"d":"15%"},0]
["Line Nr.","Province","Description","Unit Price\n(excl VAT)",null,null,"Extra per kg","Unit Price \n(incl VAT) If Applicable"]
[3640,"Mpumalanga - Within","SAME DAY DELIVERY WITHIN MPUMALANGA PROVINCE ABOVE 10KG (PER KG)",null,null,{"$f":"D285+E285","v":0},{"v":0.15,"d":"15%"},{"$f":"F285+(F285*15%)","v":0}]
[2940,"Mpumalanga - Within","OVERNIGHT EXPRESS DELIVERY WITHIN MPUMALANGA PROVINCE ABOVE 1KG LESS THAN 10KG",null,null,0,{"v":0.15,"d":"15%"},0]
[4080,"Mpumalanga - Within","ECONOMY DELIVERY WITHIN MPUMALANGA PROVINCE ABOVE 10KG (PER KG)",null,null,0,{"v":0.15,"d":"15%"},0]
[3040,"Mpumalanga - Within","SAME DAY DELIVERY WITHIN MPUMALANGA PROVINCE ABOVE 1KG LESS THAN 10KG",null,null,0,{"v":0.15,"d":"15%"},0]
[3070,"Mpumalanga - Within","OVERNIGHT EXPRESS DELIVERY WITHIN MPUMALANGA PROVINCE ABOVE 10KG (PER KG)",null,null,0,{"v":0.15,"d":"15%"},0]
[3140,"Mpumalanga - Within","ECONOMY DELIVERY WITHIN MPUMALANGA PROVINCE ABOVE 1KG LESS THAN 10KG",null,null,0,{"v":0.15,"d":"15%"},0]
[3410,"Mpumalanga - Within","PUBLIC HOLIDAY AND WEEKEND DELIVERY WITHIN MPUMALANGA PROVINCE ABOVE 1KG LESS THAN 10KG",null,null,0,{"v":0.15,"d":"15%"},0]
[4380,"Mpumalanga - Within","PUBLIC HOLIDAY AND WEEKEND DELIVERY WITHIN MPUMALANGA PROVINCE ABOVE 10KG (PER KG)",null,null,0,{"v":0.15,"d":"15%"},0]
[2630,"North West","OVERNIGHT EXPRESS DELIVERY BETWEEN NORTH WEST PROVINCE AND FREE STATE PROVINCE ABOVE 10KG (PER KG)",null,null,0,{"v":0.15,"d":"15%"},0]
[1380,"North West","SAME DAY DELIVERY BETWEEN NORTH WEST PROVINCE AND FREE STATE PROVINCE ABOVE 1KG LESS THAN 10KG",null,null,0,{"v":0.15,"d":"15%"},0]
[170,"North West","OVERNIGHT EXPRESS DELIVERY BETWEEN NORTH WEST PROVINCE AND FREE STATE PROVINCE ABOVE 1KG LESS THAN 10KG",null,null,0,{"v":0.15,"d":"15%"},0]
[1780,"North West","PUBLIC HOLIDAY AND WEEKEND DELIVERY BETWEEN NORTH WEST PROVINCE AND FREE STATE PROVINCE ABOVE 1KG LESS THAN 10KG",null,null,0,{"v":0.15,"d":"15%"},0]
[2170,"North West","ECONOMY DELIVERY BETWEEN NORTH WEST PROVINCE AND FREE STATE PROVINCE ABOVE 1KG LESS THAN 10KG",null,null,0,{"v":0.15,"d":"15%"},0]
[3320,"North West","SAME DAY DELIVERY BETWEEN NORTH WEST PROVINCE AND FREE STATE PROVINCE ABOVE 10KG (PER KG)",null,null,0,{"v":0.15,"d":"15%"},0]
[4010,"North West","ECONOMY DELIVERY BETWEEN NORTH WEST PROVINCE AND FREE STATE PROVINCE ABOVE 10KG (PER KG)",null,null,0,{"v":0.15,"d":"15%"},0]
[4490,"North West","PUBLIC HOLIDAY AND WEEKEND DELIVERY BETWEEN NORTH WEST PROVINCE AND FREE STATE PROVINCE ABOVE 10KG (PER KG)",null,null,0,{"v":0.15,"d":"15%"},0]
[3180,"North West - Within","SAME DAY DELIVERY WITHIN NORTH WEST PROVINCE ABOVE 1KG LESS THAN 10KG",null,null,0,{"v":0.15,"d":"15%"},0]
[3680,"North West - Within","SAME DAY DELIVERY WITHIN NORTH WEST PROVINCE ABOVE 10KG (PER KG)",null,null,0,{"v":0.15,"d":"15%"},0]
[4390,"North West - Within","PUBLIC HOLIDAY AND WEEKEND DELIVERY WITHIN NORTH WEST PROVINCE ABOVE 10KG (PER KG)",null,null,0,{"v":0.15,"d":"15%"},0]
[4140,"North West - Within","ECONOMY DELIVERY WITHIN NORTH WEST PROVINCE ABOVE 10KG (PER KG)",null,null,0,{"v":0.15,"d":"15%"},0]
[2930,"North West - Within","OVERNIGHT EXPRESS DELIVERY WITHIN NORTH WEST PROVINCE ABOVE 1KG LESS THAN 10KG",null,null,0,{"v":0.15,"d":"15%"},0]
["17 of 22"]
["Line Nr.","Province","Description","Unit Price\n(excl VAT)",null,null,"Extra per kg","Unit Price \n(incl VAT) If Applicable"]
[3150,"North West - Within","ECONOMY DELIVERY WITHIN NORTH WEST PROVINCE ABOVE 1KG LESS THAN 10KG",null,null,{"$f":"D308+E308","v":0},{"v":0.15,"d":"15%"},{"$f":"F308+(F308*15%)","v":0}]
[3450,"North West - Within","PUBLIC HOLIDAY AND WEEKEND DELIVERY WITHIN NORTH WEST PROVINCE ABOVE 1KG LESS THAN 10KG",null,null,0,{"v":0.15,"d":"15%"},0]
[3000,"North West - Within","OVERNIGHT EXPRESS DELIVERY WITHIN NORTH WEST PROVINCE ABOVE 10KG (PER KG)",null,null,0,{"v":0.15,"d":"15%"},0]
[2460,"Northern Cape","OVERNIGHT EXPRESS DELIVERY BETWEEN NORTHERN CAPE PROVINCE AND WESTERN CAPE PROVINCE ABOVE 10KG (PER KG)",null,null,0,{"v":0.15,"d":"15%"},0]
[2470,"Northern Cape","OVERNIGHT EXPRESS DELIVERY BETWEEN NORTHERN CAPE PROVINCE AND EASTERN CAPE PROVINCE ABOVE 10KG (PER KG)",null,null,0,{"v":0.15,"d":"15%"},0]
[2480,"Northern Cape","OVERNIGHT EXPRESS DELIVERY BETWEEN NORTHERN CAPE PROVINCE AND KWAZULU NATAL PROVINCE ABOVE 10KG (PER KG)",null,null,0,{"v":0.15,"d":"15%"},0]
[2490,"Northern Cape","OVERNIGHT EXPRESS DELIVERY BETWEEN NORTHERN CAPE PROVINCE AND NORTH WEST PROVINCE ABOVE 10KG (PER KG)",null,null,0,{"v":0.15,"d":"15%"},0]
[2500,"Northern Cape","OVERNIGHT EXPRESS DELIVERY BETWEEN NORTHERN CAPE PROVINCE AND FREE STATE PROVINCE ABOVE 10KG (PER KG)",null,null,0,{"v":0.15,"d":"15%"},0]
[1240,"Northern Cape","SAME DAY DELIVERY BETWEEN NORTHERN CAPE PROVINCE AND WESTERN CAPE PROVINCE ABOVE 1KG LESS THAN 10KG",null,null,0,{"v":0.15,"d":"15%"},0]
[1250,"Northern Cape","SAME DAY DELIVERY BETWEEN NORTHERN CAPE PROVINCE AND EASTERN CAPE PROVINCE ABOVE 1KG LESS THAN 10KG",null,null,0,{"v":0.15,"d":"15%"},0]
[1260,"Northern Cape","SAME DAY DELIVERY BETWEEN NORTHERN CAPE PROVINCE AND KWAZULU NATAL PROVINCE ABOVE 1KG LESS THAN 10KG",null,null,0,{"v":0.15,"d":"15%"},0]
[1270,"Northern Cape","SAME DAY DELIVERY BETWEEN NORTHERN CAPE PROVINCE AND NORTH WEST PROVINCE ABOVE 1KG LESS THAN 10KG",null,null,0,{"v":0.15,"d":"15%"},0]
[1280,"Northern Cape","SAME DAY DELIVERY BETWEEN NORTHERN CAPE PROVINCE AND FREE STATE PROVINCE ABOVE 1KG LESS THAN 10KG",null,null,0,{"v":0.15,"d":"15%"},0]
[1620,"Northern Cape","PUBLIC HOLIDAY AND WEEKEND DELIVERY BETWEEN NORTHERN CAPE PROVINCE AND WESTERN CAPE PROVINCE ABOVE 1KG LESS THAN 10KG",null,null,0,{"v":0.15,"d":"15%"},0]
[1630,"Northern Cape","PUBLIC HOLIDAY AND WEEKEND DELIVERY BETWEEN NORTHERN CAPE PROVINCE AND EASTERN CAPE PROVINCE ABOVE 1KG LESS THAN 10KG",null,null,0,{"v":0.15,"d":"15%"},0]
[1650,"Northern Cape","PUBLIC HOLIDAY AND WEEKEND DELIVERY BETWEEN NORTHERN CAPE PROVINCE AND KWAZULU NATAL PROVINCE ABOVE 1KG LESS THAN 10KG",null,null,0,{"v":0.15,"d":"15%"},0]
[1660,"Northern Cape","PUBLIC HOLIDAY AND WEEKEND DELIVERY BETWEEN NORTHERN CAPE PROVINCE AND NORTH WEST PROVINCE ABOVE 1KG LESS THAN",null,null,0,{"v":0.15,"d":"15%"},0]
["Line Nr.","Province","Description","Unit Price\n(excl VAT)",null,null,"Extra per kg","Unit Price \n(incl VAT) If Applicable"]
[null,null,"10KG",null,null,{"$f":"D326+E326","v":0},{"v":0.15,"d":"15%"},{"$f":"F326+(F326*15%)","v":0}]
[1670,"Northern Cape","PUBLIC HOLIDAY AND WEEKEND DELIVERY BETWEEN NORTHERN CAPE PROVINCE AND FREE STATE PROVINCE ABOVE 1KG LESS THAN 10KG",null,null,0,{"v":0.15,"d":"15%"},0]
[2020,"Northern Cape","ECONOMY DELIVERY BETWEEN NORTHERN CAPE PROVINCE AND WESTERN CAPE PROVINCE ABOVE 1KG LESS THAN 10KG",null,null,0,{"v":0.15,"d":"15%"},0]
[2030,"Northern Cape","ECONOMY DELIVERY BETWEEN NORTHERN CAPE PROVINCE AND EASTERN CAPE PROVINCE ABOVE 1KG LESS THAN 10KG",null,null,0,{"v":0.15,"d":"15%"},0]
[2040,"Northern Cape","ECONOMY DELIVERY BETWEEN NORTHERN CAPE PROVINCE AND KWAZULU NATAL PROVINCE ABOVE 1KG LESS THAN 10KG",null,null,0,{"v":0.15,"d":"15%"},0]
[2050,"Northern Cape","ECONOMY DELIVERY BETWEEN NORTHERN CAPE PROVINCE AND NORTH WEST PROVINCE ABOVE 1KG LESS THAN 10KG",null,null,0,{"v":0.15,"d":"15%"},0]
[2060,"Northern Cape","ECONOMY DELIVERY BETWEEN NORTHERN CAPE PROVINCE AND FREE STATE PROVINCE ABOVE 1KG LESS THAN 10KG",null,null,0,{"v":0.15,"d":"15%"},0]
[2080,"Northern Cape","OVERNIGHT EXPRESS DELIVERY BETWEEN NORTHERN CAPE PROVINCE AND WESTERN CAPE PROVINCE ABOVE 1KG LESS THAN 10KG",null,null,0,{"v":0.15,"d":"15%"},0]
[2190,"Northern Cape","OVERNIGHT EXPRESS DELIVERY BETWEEN NORTHERN CAPE PROVINCE AND EASTERN CAPE PROVINCE ABOVE 1KG LESS THAN 10KG",null,null,0,{"v":0.15,"d":"15%"},0]
[2200,"Northern Cape","OVERNIGHT EXPRESS DELIVERY BETWEEN NORTHERN CAPE PROVINCE AND KWAZULU NATAL PROVINCE ABOVE 1KG LESS THAN 10KG",null,null,0,{"v":0.15,"d":"15%"},0]
[2220,"Northern Cape","OVERNIGHT EXPRESS DELIVERY BETWEEN NORTHERN CAPE PROVINCE AND NORTH WEST PROVINCE ABOVE 1KG LESS THAN 10KG",null,null,0,{"v":0.15,"d":"15%"},0]
[2230,"Northern Cape","OVERNIGHT EXPRESS DELIVERY BETWEEN NORTHERN CAPE PROVINCE AND FREE STATE PROVINCE ABOVE 1KG LESS THAN 10KG",null,null,0,{"v":0.15,"d":"15%"},0]
[3190,"Northern Cape","SAME DAY DELIVERY BETWEEN NORTHERN CAPE PROVINCE AND EASTERN CAPE PROVINCE ABOVE 1KG LESS THAN 10KG",null,null,0,{"v":0.15,"d":"15%"},0]
[3200,"Northern Cape","SAME DAY DELIVERY BETWEEN NORTHERN CAPE PROVINCE AND KWAZULU NATAL PROVINCE ABOVE 10KG (PER KG)",null,null,0,{"v":0.15,"d":"15%"},0]
[3210,"Northern Cape","SAME DAY DELIVERY BETWEEN NORTHERN CAPE PROVINCE AND NORTH WEST PROVINCE ABOVE 10KG (PER KG)",null,null,0,{"v":0.15,"d":"15%"},0]
[3220,"Northern Cape","SAME DAY DELIVERY BETWEEN NORTHERN CAPE PROVINCE AND FREE STATE PROVINCE ABOVE 1KG LESS THAN 10KG",null,null,0,{"v":0.15,"d":"15%"},0]
[3390,"Northern Cape","SAME DAY DELIVERY BETWEEN NORTHERN CAPE PROVINCE AND WESTERN CAPE PROVINCE ABOVE 10KG (PER KG)",null,null,0,{"v":0.15,"d":"15%"},0]
[3970,"Northern Cape","ECONOMY DELIVERY BETWEEN NORTHERN CAPE PROVINCE AND NORTH WEST PROVINCE ABOVE",null,null,0,{"v":0.15,"d":"15%"},0]
["19 of 22"]
["Line Nr.","Province","Description","Unit Price\n(excl VAT)",null,null,"Extra per kg","Unit Price \n(incl VAT) If Applicable"]
[null,null,"10KG (PER KG)",null,null,{"$f":"D346+E346","v":0},{"v":0.15,"d":"15%"},{"$f":"F346+(F346*15%)","v":0}]
[3980,"Northern Cape","ECONOMY DELIVERY BETWEEN NORTHERN CAPE PROVINCE AND KWAZULU NATAL PROVINCE ABOVE 10KG (PER KG)",null,null,0,{"v":0.15,"d":"15%"},0]
[3990,"Northern Cape","ECONOMY DELIVERY BETWEEN NORTHERN CAPE PROVINCE AND FREE STATE PROVINCE ABOVE 10KG (PER KG)",null,null,0,{"v":0.15,"d":"15%"},0]
[4000,"Northern Cape","ECONOMY DELIVERY BETWEEN NORTHERN CAPE PROVINCE AND EASTERN CAPE PROVINCE ABOVE 10KG (PER KG)",null,null,0,{"v":0.15,"d":"15%"},0]
[4030,"Northern Cape","ECONOMY DELIVERY BETWEEN NORTHERN CAPE PROVINCE AND WESTERN CAPE PROVINCE ABOVE 10KG (PER KG)",null,null,0,{"v":0.15,"d":"15%"},0]
[4260,"Northern Cape","PUBLIC HOLIDAY AND WEEKEND DELIVERY BETWEEN NORTHERN CAPE PROVINCE AND NORTH WEST PROVINCE ABOVE 10KG (PER KG)",null,null,0,{"v":0.15,"d":"15%"},0]
[4270,"Northern Cape","PUBLIC HOLIDAY AND WEEKEND DELIVERY BETWEEN NORTHERN CAPE PROVINCE AND KWAZULU NATAL PROVINCE ABOVE 10KG (PER KG)",null,null,0,{"v":0.15,"d":"15%"},0]
[4280,"Northern Cape","PUBLIC HOLIDAY AND WEEKEND DELIVERY BETWEEN NORTHERN CAPE PROVINCE AND EASTERN CAPE PROVINCE ABOVE 10KG (PER KG)",null,null,0,{"v":0.15,"d":"15%"},0]
[4290,"Northern Cape","PUBLIC HOLIDAY AND WEEKEND DELIVERY BETWEEN NORTHERN CAPE PROVINCE AND WESTERN CAPE PROVINCE ABOVE 10KG (PER KG)",null,null,0,{"v":0.15,"d":"15%"},0]
[4530,"Northern Cape","PUBLIC HOLIDAY AND WEEKEND DELIVERY BETWEEN NORTHERN CAPE PROVINCE AND FREE STATE PROVINCE ABOVE 10KG (PER KG)",null,null,0,{"v":0.15,"d":"15%"},0]
[3080,"Northern Cape\n-Within","SAME DAY DELIVERY WITHIN NORTHERN CAPE PROVINCE ABOVE 1KG LESS THAN 10KG",null,null,0,{"v":0.15,"d":"15%"},0]
[3650,"Northern Cape\n-Within","SAME DAY DELIVERY WITHIN NORTHERN CAPE PROVINCE ABOVE 10KG (PER KG)",null,null,0,{"v":0.15,"d":"15%"},0]
[4340,"Northern Cape\n-Within","PUBLIC HOLIDAY AND WEEKEND DELIVERY WITHIN NORTHERN CAPE PROVINCE ABOVE 10KG (PER KG)",null,null,0,{"v":0.15,"d":"15%"},0]
[4130,"Northern Cape\n-Within","ECONOMY DELIVERY WITHIN NORTHERN CAPE PROVINCE ABOVE 10KG (PER KG)",null,null,0,{"v":0.15,"d":"15%"},0]
[2900,"Northern Cape\n-Within","OVERNIGHT EXPRESS DELIVERY WITHIN NORTHERN CAPE PROVINCE ABOVE 1KG LESS THAN 10KG",null,null,0,{"v":0.15,"d":"15%"},0]
[3020,"Northern Cape\n-Within","ECONOMY DELIVERY WITHIN NORTHERN CAPE PROVINCE ABOVE 1KG LESS THAN 10KG",null,null,0,{"v":0.15,"d":"15%"},0]
[3420,"Northern Cape\n-Within","PUBLIC HOLIDAY AND WEEKEND DELIVERY WITHIN NORTHERN CAPE PROVINCE ABOVE 1KG LESS THAN 10KG",null,null,0,{"v":0.15,"d":"15%"},0]
[2970,"Northern Cape\n-Within","OVERNIGHT EXPRESS DELIVERY WITHIN NORTHERN CAPE PROVINCE ABOVE 10KG (PER KG)",null,null,0,{"v":0.15,"d":"15%"},0]
[2520,"Western Cape","OVERNIGHT EXPRESS DELIVERY BETWEEN WESTERN CAPE PROVINCE AND EASTERN CAPE PROVINCE ABOVE 10KG (PER KG)",null,null,0,{"v":0.15,"d":"15%"},0]
["Line Nr.","Province","Description","Unit Price\n(excl VAT)",null,null,"Extra per kg","Unit Price \n(incl VAT) If Applicable"]
[2530,"Western Cape","OVERNIGHT EXPRESS DELIVERY BETWEEN WESTERN CAPE PROVINCE AND KWAZULU NATAL PROVINCE ABOVE 10KG (PER KG)",null,null,{"$f":"D366+E366","v":0},{"v":0.15,"d":"15%"},{"$f":"F366+(F366*15%)","v":0}]
[2540,"Western Cape","OVERNIGHT EXPRESS DELIVERY BETWEEN WESTERN CAPE PROVINCE AND NORTH WEST PROVINCE ABOVE 10KG (PER KG)",null,null,0,{"v":0.15,"d":"15%"},0]
[2550,"Western Cape","OVERNIGHT EXPRESS DELIVERY BETWEEN WESTERN CAPE PROVINCE AND FREE STATE PROVINCE ABOVE 10KG (PER KG)",null,null,0,{"v":0.15,"d":"15%"},0]
[1290,"Western Cape","SAME DAY DELIVERY BETWEEN WESTERN CAPE PROVINCE AND EASTERN CAPE PROVINCE ABOVE 1KG LESS THAN 10KG",null,null,0,{"v":0.15,"d":"15%"},0]
[1300,"Western Cape","SAME DAY DELIVERY BETWEEN WESTERN CAPE PROVINCE AND NORTH WEST PROVINCE ABOVE 1KG LESS THAN 10KG",null,null,0,{"v":0.15,"d":"15%"},0]
[1320,"Western Cape","SAME DAY DELIVERY BETWEEN EASTERN CAPE PROVINCE AND KWAZULU NATAL PROVINCE ABOVE 1KG LESS THAN 10KG",null,null,0,{"v":0.15,"d":"15%"},0]
[1330,"Western Cape","SAME DAY DELIVERY BETWEEN WESTERN CAPE PROVINCE AND FREE STATE PROVINCE ABOVE 1KG LESS THAN 10KG",null,null,0,{"v":0.15,"d":"15%"},0]
[1680,"Western Cape","PUBLIC HOLIDAY AND WEEKEND DELIVERY BETWEEN WESTERN CAPE PROVINCE AND EASTERN CAPE PROVINCE ABOVE 1KG LESS THAN 10KG",null,null,0,{"v":0.15,"d":"15%"},0]
[1690,"Western Cape","PUBLIC HOLIDAY AND WEEKEND DELIVERY BETWEEN WESTERN CAPE PROVINCE AND KWAZULU NATAL PROVINCE ABOVE 1KG LESS THAN 10KG",null,null,0,{"v":0.15,"d":"15%"},0]
[1700,"Western Cape","PUBLIC HOLIDAY AND WEEKEND DELIVERY BETWEEN WESTERN CAPE PROVINCE AND NORTH WEST PROVINCE ABOVE 1KG LESS THAN 10KG",null,null,0,{"v":0.15,"d":"15%"},0]
[1710,"Western Cape","PUBLIC HOLIDAY AND WEEKEND DELIVERY BETWEEN WESTERN CAPE PROVINCE AND FREE STATE PROVINCE ABOVE 1KG LESS THAN 10KG",null,null,0,{"v":0.15,"d":"15%"},0]
[2070,"Western Cape","ECONOMY DELIVERY BETWEEN WESTERN CAPE PROVINCE AND EASTERN CAPE PROVINCE ABOVE 1KG LESS THAN 10KG",null,null,0,{"v":0.15,"d":"15%"},0]
[2090,"Western Cape","ECONOMY DELIVERY BETWEEN WESTERN CAPE PROVINCE AND KWAZULU NATAL PROVINCE ABOVE 1KG LESS THAN 10KG",null,null,0,{"v":0.15,"d":"15%"},0]
[2100,"Western Cape","ECONOMY DELIVERY BETWEEN WESTERN CAPE PROVINCE AND NORTH WEST PROVINCE ABOVE 1KG LESS THAN 10KG",null,null,0,{"v":0.15,"d":"15%"},0]
[2110,"Western Cape","ECONOMY DELIVERY BETWEEN WESTERN CAPE PROVINCE AND FREE STATE PROVINCE ABOVE 1KG LESS THAN 10KG",null,null,0,{"v":0.15,"d":"15%"},0]
[2240,"Western Cape","OVERNIGHT EXPRESS DELIVERY BETWEEN WESTERN CAPE PROVINCE AND EASTERN CAPE PROVINCE ABOVE 1KG LESS THAN 10KG",null,null,0,{"v":0.15,"d":"15%"},0]
[2400,"Western Cape","OVERNIGHT EXPRESS DELIVERY BETWEEN WESTERN CAPE PROVINCE AND KWAZULU NATAL",null,null,0,{"v":0.15,"d":"15%"},0]
["21 of 22"]
["Line Nr.","Province","Description","Unit Price\n(excl VAT)",null,null,"Extra per kg","Unit Price \n(incl VAT) If Applicable"]
[null,null,"PROVINCE ABOVE 1KG LESS THAN 10KG",null,null,{"$f":"D385+E385","v":0},{"v":0.15,"d":"15%"},{"$f":"F385+(F385*15%)","v":0}]
[2510,"Western Cape","OVERNIGHT EXPRESS DELIVERY BETWEEN WESTERN CAPE PROVINCE AND NORTH WEST PROVINCE ABOVE 1KG LESS THAN 10KG",null,null,0,{"v":0.15,"d":"15%"},0]
[2620,"Western Cape","OVERNIGHT EXPRESS DELIVERY BETWEEN WESTERN CAPE PROVINCE AND FREE STATE PROVINCE ABOVE 1KG LESS THAN 10KG",null,null,0,{"v":0.15,"d":"15%"},0]
[3060,"Western Cape","SAME DAY DELIVERY BETWEEN WESTERN CAPE PROVINCE AND KWAZULU NATAL PROVINCE ABOVE 1KG LESS THAN 10KG",null,null,0,{"v":0.15,"d":"15%"},0]
[3230,"Western Cape","SAME DAY DELIVERY BETWEEN WESTERN CAPE PROVINCE AND EASTERN CAPE PROVINCE ABOVE 1KG LESS THAN 10KG",null,null,0,{"v":0.15,"d":"15%"},0]
[3240,"Western Cape","SAME DAY DELIVERY BETWEEN WESTERN CAPE PROVINCE AND KWAZULU NATAL PROVINCE ABOVE 1KG LESS THAN 10KG",null,null,0,{"v":0.15,"d":"15%"},0]
[3250,"Western Cape","SAME DAY DELIVERY BETWEEN WESTERN CAPE PROVINCE AND NORTH WEST PROVINCE ABOVE 1KG LESS THAN 10KG",null,null,0,{"v":0.15,"d":"15%"},0]
[3260,"Western Cape","SAME DAY DELIVERY BETWEEN WESTERN CAPE PROVINCE AND FREE STATE PROVINCE ABOVE 1KG LESS THAN 10KG",null,null,0,{"v":0.15,"d":"15%"},0]
[4020,"Western Cape","ECONOMY DELIVERY BETWEEN WESTERN CAPE PROVINCE AND EASTERN CAPE PROVINCE ABOVE 10KG (PER KG)",null,null,0,{"v":0.15,"d":"15%"},0]
[4040,"Western Cape","ECONOMY DELIVERY BETWEEN WESTERN CAPE PROVINCE AND KWAZULU NATAL PROVINCE ABOVE 10KG (PER KG)",null,null,0,{"v":0.15,"d":"15%"},0]
[4050,"Western Cape","ECONOMY DELIVERY BETWEEN WESTERN CAPE PROVINCE AND NORTH WEST PROVINCE ABOVE 10KG (PER KG)",null,null,0,{"v":0.15,"d":"15%"},0]
[4060,"Western Cape","ECONOMY DELIVERY BETWEEN WESTERN CAPE PROVINCE AND FREE STATE PROVINCE ABOVE 10KG (PER KG)",null,null,0,{"v":0.15,"d":"15%"},0]
[4250,"Western Cape","PUBLIC HOLIDAY AND WEEKEND DELIVERY BETWEEN WESTERN CAPE PROVINCE AND EASTERN CAPE PROVINCE ABOVE 10KG (PER KG)",null,null,0,{"v":0.15,"d":"15%"},0]
[4300,"Western Cape","PUBLIC HOLIDAY AND WEEKEND DELIVERY BETWEEN WESTERN CAPE PROVINCE AND FREE STATE PROVINCE ABOVE 10KG (PER KG)",null,null,0,{"v":0.15,"d":"15%"},0]
[4310,"Western Cape","PUBLIC HOLIDAY AND WEEKEND DELIVERY BETWEEN WESTERN CAPE PROVINCE AND KWAZULU NATAL PROVINCE ABOVE 10KG (PER KG)",null,null,0,{"v":0.15,"d":"15%"},0]
[4320,"Western Cape","PUBLIC HOLIDAY AND WEEKEND DELIVERY BETWEEN WESTERN CAPE PROVINCE AND NORTH WEST PROVINCE ABOVE 10KG (PER KG)",null,null,0,{"v":0.15,"d":"15%"},0]
[3160,"Western Cape - Within","SAME DAY DELIVERY WITHIN WESTERN CAPE PROVINCE ABOVE 1KG LESS THAN 10KG",null,null,0,{"v":0.15,"d":"15%"},0]
[3660,"Western Cape - Within","SAME DAY DELIVERY WITHIN WESTERN CAPE PROVINCE ABOVE 10KG (PER KG)",null,null,0,{"v":0.15,"d":"15%"},0]
["Line Nr.","Province","Description","Unit Price\n(excl VAT)",null,null,"Extra per kg","Unit Price \n(incl VAT) If Applicable"]
[4330,"Western Cape - Within","PUBLIC HOLIDAY AND WEEKEND DELIVERY WITHIN WESTERN CAPE PROVINCE ABOVE 10KG (PER KG)",null,null,{"$f":"D404+E404","v":0},{"v":0.15,"d":"15%"},{"$f":"F404+(F404*15%)","v":0}]
[4120,"Western Cape - Within","ECONOMY DELIVERY WITHIN WESTERN CAPE PROVINCE ABOVE 10KG (PER KG)",null,null,0,{"v":0.15,"d":"15%"},0]
[2910,"Western Cape - Within","OVERNIGHT EXPRESS DELIVERY WITHIN WESTERN CAPE PROVINCE ABOVE 1KG LESS THAN 10KG",null,null,0,{"v":0.15,"d":"15%"},0]
[3050,"Western Cape - Within","ECONOMY DELIVERY WITHIN WESTERN CAPE PROVINCE ABOVE 1KG LESS THAN 10KG",null,null,0,{"v":0.15,"d":"15%"},0]
[3430,"Western Cape - Within","PUBLIC HOLIDAY AND WEEKEND DELIVERY WITHIN WESTERN CAPE PROVINCE ABOVE 1KG LESS THAN 10KG",null,null,0,{"v":0.15,"d":"15%"},0]
[2980,"Western Cape - Within","OVERNIGHT EXPRESS DELIVERY WITHIN WESTERN CAPE PROVINCE ABOVE 10KG (PER KG)",null,null,0,{"v":0.15,"d":"15%"},0]
[2300,"Limpopo","OVERNIGHT EXPRESS DELIVERY BETWEEN LIMPOPO PROVINCE AND MPUMALANGA PROVINCE ABOVE 10KG (PER KG)",null,null,0,{"v":0.15,"d":"15%"},0]
[null,"Other Services"]
[]
["GRAND TOTAL "]
["Bidders Name"]